bitfinex/quotes_BTCUSD_20230101
["timestamp","ask_amount","ask_price","bid_price","bid_amount"]
[1672579818390,0.63397395,16563.0,16562.0,2.99060862]
[1672579818609,0.63397395,16563.0,16562.0,3.71496122]
[1672579818853,0.64797395,16563.0,16562.0,3.71496122]
[1672579819684,0.64797395,16563.0,16562.0,3.73323217]
[1672579819908,0.63388263,16563.0,16562.0,3.73323217]
[1672579820158,0.64788263,16563.0,16562.0,3.73323217]
[1672579822630,0.64788263,16563.0,16562.0,3.73113854]
[1672579822881,0.63388263,16563.0,16562.0,3.73113854]
[1672579823239,0.82897665,16563.0,16562.0,3.73113854]
[1672579823496,0.82897751,16563.0,16562.0,3.73113854]
[1672579823741,0.64788263,16563.0,16562.0,3.73113854]
[1672579824010,0.46686881,16563.0,16562.0,3.73113854]
[1672579830921,0.46686881,16563.0,16562.0,3.03113854]
[1672579831875,0.46686881,16563.0,16562.0,3.73113854]
[1672579837824,0.46686881,16563.0,16562.0,3.03113854]
[1672579838593,0.19509652,16563.0,16562.0,3.03113854]
[1672579838838,0.19509652,16563.0,16562.0,3.91220581]
[1672579839327,0.19509652,16563.0,16562.0,3.73113854]
[1672579839824,0.19509652,16563.0,16562.0,3.91220581]
[1672579840070,0.19509652,16563.0,16562.0,3.73113854]
[1672579849691,0.19509652,16563.0,16562.0,3.03113854]
[1672579850651,0.19509652,16563.0,16562.0,3.73113854]
[1672579855729,0.014,16563.0,16562.0,3.73113854]
[1672579855972,0.19509652,16563.0,16562.0,3.91220581]
[1672579856221,0.014,16563.0,16562.0,3.91220581]
[1672579856716,0.014,16563.0,16562.0,3.21220581]
[1672579857722,0.014,16563.0,16562.0,3.91220581]
[1672579858736,0.19509652,16563.0,16562.0,3.73113854]
[1672579859485,0.46686881,16563.0,16562.0,3.73113854]
[1672579860713,0.19509652,16563.0,16562.0,3.73113854]
[1672579860965,0.19509652,16563.0,16562.0,3.71286759]
[1672579861450,0.46686881,16563.0,16562.0,3.71286759]
[1672579862461,0.19509652,16563.0,16562.0,3.71286759]
[1672579862965,0.19509652,16563.0,16562.0,3.89393486]
[1672579863456,0.19509652,16563.0,16562.0,3.71286759]
[1672579863694,0.19509652,16563.0,16562.0,3.89393486]
[1672579864446,0.19509652,16563.0,16562.0,3.91220581]
[1672579865181,0.19509652,16563.0,16562.0,3.21220581]
[1672579865664,0.19509652,16563.0,16562.0,3.91220581]
[1672579869186,0.19509652,16563.0,16562.0,3.73113854]
[1672579870395,0.19509652,16563.0,16562.0,3.91220581]
[1672579873144,0.19509652,16563.0,16562.0,3.21220581]
[1672579874149,0.19509652,16563.0,16562.0,3.91220581]
[1672579875454,0.19509652,16563.0,16562.0,3.91277757]
[1672579880301,0.19509652,16563.0,16562.0,3.21277757]
[1672579881359,0.19509652,16563.0,16562.0,3.91277757]
[1672579882590,0.19509652,16563.0,16562.0,3.92127757]
[1672579887353,0.19509652,16563.0,16562.0,3.22127757]
[1672579888357,0.19509652,16563.0,16562.0,3.92127757]
[1672579889556,0.18109652,16563.0,16562.0,3.92127757]
[1672579889802,0.19509652,16563.0,16562.0,3.92127757]
[1672579890046,0.18109652,16563.0,16562.0,3.92127757]
[1672579890308,0.19509652,16563.0,16562.0,3.92127757]
[1672579894123,0.19509652,16563.0,16562.0,3.22127757]
[1672579895232,0.19509652,16563.0,16562.0,3.92127757]
[1672579898489,0.19509652,16563.0,16562.0,3.92114107]
[1672579900555,0.46686881,16563.0,16562.0,3.7400738]
[1672579906767,0.46686881,16563.0,16562.0,3.22114107]
[1672579907014,0.19509652,16563.0,16562.0,3.22114107]
[1672579907744,0.19509652,16563.0,16562.0,3.92114107]
[1672579913549,0.19509652,16563.0,16562.0,3.22114107]
[1672579914790,0.19509652,16563.0,16562.0,3.92114107]
[1672579916285,0.18109652,16563.0,16562.0,3.92114107]
[1672579916776,0.19509652,16563.0,16562.0,3.92114107]
[1672579917525,0.18109652,16563.0,16562.0,3.92114107]
[1672579917770,0.19509652,16563.0,16562.0,3.92114107]
[1672579920757,0.19509652,16563.0,16562.0,3.22114107]
[1672579921691,0.19509652,16563.0,16562.0,3.92114107]
[1672579921943,0.19509652,16563.0,16562.0,3.7400738]
[1672579921944,0.46686881,16563.0,16562.0,3.7400738]
[1672579922928,0.46686881,16563.0,16562.0,3.92114107]
[1672579923700,0.46686881,16563.0,16562.0,3.72180285]
[1672579923946,1.07387781,16563.0,16562.0,3.72180285]
[1672579924190,1.08787781,16563.0,16562.0,3.29735484]
[1672579924437,1.4500234,16563.0,16562.0,3.29735484]
[1672579924679,0.46685237,16563.0,16562.0,3.29735484]
[1672579925358,0.45285237,16563.0,16562.0,3.29735484]
[1672579925591,0.46685237,16563.0,16562.0,3.29735484]
[1672579926075,0.46685237,16563.0,16562.0,3.72170744]
[1672579930264,0.46685237,16563.0,16562.0,3.02170744]
[1672579931063,0.46685237,16563.0,16562.0,2.59735484]
[1672579931331,0.46685237,16563.0,16562.0,3.72170744]
[1672579936012,0.8290144,16563.0,16562.0,3.72170744]
[1672579936256,0.46685237,16563.0,16562.0,3.72170744]
[1672579937218,0.46685237,16563.0,16562.0,3.02170744]
[1672579938171,0.46685237,16563.0,16562.0,2.59735484]
[1672579938422,0.46685237,16563.0,16562.0,3.29735484]
[1672579938675,1.10068113,16563.0,16562.0,2.52044476]
[1672579938923,1.44991784,16563.0,16562.0,2.52044476]
[1672579939408,0.81490884,16563.0,16562.0,2.52044476]
[1672579940425,1.10043004,16563.0,16562.0,2.52044476]
[1672579940674,1.08643004,16563.0,16562.0,2.52044476]
[1672579940948,1.10043004,16563.0,16562.0,2.52044476]
[1672579942004,0.64768323,16563.0,16562.0,2.52044476]
[1672579943256,0.63368323,16563.0,16562.0,2.52044476]
[1672579943503,0.64768323,16563.0,16562.0,2.52044476]
[1672579943764,0.63368323,16563.0,16562.0,2.52044476]
[1672579944014,0.64768323,16563.0,16562.0,2.52044476]
[1672579945725,1.10043004,16563.0,16562.0,2.52044476]
[1672579946010,1.72143904,16563.0,16562.0,2.52044476]
[1672579946286,1.26869223,16563.0,16562.0,2.52044476]
[1672579947026,0.64768323,16563.0,16562.0,2.52044476]
[1672579947273,0.64768323,16563.0,16562.0,1.82044476]
[1672579948003,0.64768323,16563.0,16562.0,1.82034032]
[1672579948244,0.64768323,16563.0,16562.0,2.52034032]
[1672579948490,0.64779857,16563.0,16562.0,2.52034032]
[1672579948740,0.64768323,16563.0,16562.0,2.52034032]
[1672579949497,1.10043004,16563.0,16562.0,2.52034032]
[1672579949741,0.82890884,16563.0,16562.0,2.52034032]
[1672579950253,1.10035276,16563.0,16562.0,2.52034032]
[1672579950739,0.64760595,16563.0,16562.0,2.52034032]
[1672579950984,0.64760595,16563.0,16562.0,3.29621134]
[1672579951734,0.64760595,16563.0,16562.0,2.99621134]
[1672579954257,0.64760595,16563.0,16562.0,2.29621134]
[1672579955998,0.64760595,16563.0,16562.0,2.99621134]
[1672579962222,0.64760595,16563.0,16562.0,2.29621134]
[1672579962484,0.64760595,16563.0,16562.0,2.99621134]
[1672579963474,1.10035276,16563.0,16562.0,2.99621134]
[1672579964002,0.64760595,16563.0,16562.0,2.99621134]
[1672579964246,1.10035276,16563.0,16562.0,2.99621134]
[1672579964740,0.82890884,16563.0,16562.0,2.99621134]
[1672579965237,1.10043789,16563.0,16562.0,2.99621134]
[1672579965910,1.10055323,16563.0,16562.0,2.99621134]
[1672579966169,0.82890884,16563.0,16562.0,2.99621134]
[1672579966420,1.1004463,16563.0,16562.0,2.99621134]
[1672579967182,0.64769949,16563.0,16562.0,2.99621134]
[1672579968285,1.1004463,16563.0,16562.0,2.29621134]
[1672579969340,0.64769949,16563.0,16562.0,2.99621134]
[1672579969586,1.1004463,16563.0,16562.0,2.99621134]
[1672579972152,0.82890884,16563.0,16562.0,3.4204775]
[1672579972393,1.10049953,16563.0,16562.0,2.9961249]
[1672579974394,0.82890884,16563.0,16562.0,3.4204775]
[1672579974625,1.10051614,16563.0,16562.0,3.4204775]
[1672579974853,0.82890884,16563.0,16562.0,3.4204775]
[1672579975088,1.10051769,16563.0,16562.0,3.7204775]
[1672579975335,0.64777088,16563.0,16562.0,3.0204775]
[1672579975560,1.10051769,16563.0,16562.0,2.7204775]
[1672579976540,0.82890884,16563.0,16562.0,3.4204775]
[1672579977021,1.10053954,16563.0,16562.0,3.4204775]
[1672579977506,0.82890884,16563.0,16562.0,3.4204775]
[1672579982686,0.82890884,16563.0,16562.0,2.7204775]
[1672579983428,0.82890884,16563.0,16562.0,2.9961249]
[1672579983675,0.82890884,16563.0,16562.0,3.4204775]
[1672579986178,0.82890884,16563.0,16562.0,2.9961249]
[1672579986923,0.82890884,16563.0,16562.0,3.4204775]
[1672579989400,0.82890884,16563.0,16562.0,2.7204775]
[1672579989928,0.64784339,16563.0,16562.0,3.0204775]
[1672579990173,0.64784339,16563.0,16562.0,2.5961249]
[1672579990414,1.7215992,16563.0,16562.0,3.2961249]
[1672579990912,1.1005902,16563.0,16562.0,3.2961249]
[1672579991172,1.7215992,16563.0,16562.0,3.4204775]
[1672579991434,1.1005902,16563.0,16562.0,2.9961249]
[1672579991689,1.1005902,16563.0,16562.0,3.4204775]
[1672579991936,0.64784339,16563.0,16562.0,3.7204775]
[1672579993163,0.64784339,16563.0,16562.0,3.72038174]
[1672579994938,0.64784339,16563.0,16562.0,3.42038174]
[1672579995714,0.64784339,16563.0,16562.0,3.72038174]
[1672579996485,0.64784339,16563.0,16562.0,3.02038174]
[1672579997723,0.64784339,16563.0,16562.0,3.72038174]
[1672580001387,0.64784339,16563.0,16562.0,3.29602914]
[1672580001645,1.26885239,16563.0,16562.0,2.99602914]
[1672580002138,0.64784339,16563.0,16562.0,2.99602914]
[1672580002676,1.7215992,16563.0,16562.0,2.99602914]
[1672580002934,1.72171454,16563.0,16562.0,2.99602914]
[1672580003174,1.7215992,16563.0,16562.0,2.99602914]
[1672580003696,1.7215992,16563.0,16562.0,2.29602914]
[1672580004215,1.1005902,16563.0,16562.0,2.29602914]
[1672580004446,1.1005902,16563.0,16562.0,2.99602914]
[1672580006189,0.82890884,16563.0,16562.0,2.99602914]
[1672580007674,1.10055725,16563.0,16562.0,3.29602914]
[1672580007912,1.10055725,16563.0,16562.0,2.99602914]
[1672580008617,1.10055609,16563.0,16562.0,2.99602914]
[1672580010316,1.10055609,16563.0,16562.0,3.29602914]
[1672580010578,1.10055609,16563.0,16562.0,2.29602914]
[1672580010822,1.72156509,16563.0,16562.0,2.29602914]
[1672580011064,1.26881828,16563.0,16562.0,2.29602914]
[1672580011309,0.64780928,16563.0,16562.0,2.59602914]
[1672580011554,0.64780928,16563.0,16562.0,3.29602914]
[1672580011805,0.64780928,16563.0,16562.0,3.72038174]
[1672580012026,0.64780928,16563.0,16562.0,3.29602914]
[1672580012271,0.64780928,16563.0,16562.0,3.72038174]
[1672580016784,0.64780928,16563.0,16562.0,3.72027098]
[1672580017157,0.64780928,16563.0,16562.0,3.29591838]
[1672580017401,0.64780928,16563.0,16562.0,3.72027098]
[1672580017644,0.64780928,16563.0,16562.0,2.59591838]
[1672580017888,1.26881828,16563.0,16562.0,2.59591838]
[1672580018622,1.26881828,16563.0,16562.0,2.99591838]
[1672580019345,0.64780928,16563.0,16562.0,3.29591838]
[1672580019584,0.64780928,16563.0,16562.0,2.99591838]
[1672580020105,0.64780928,16563.0,16562.0,3.29591838]
[1672580020327,0.64780928,16563.0,16562.0,3.42027098]
[1672580020551,0.64780928,16563.0,16562.0,2.99591838]
[1672580021038,1.10055609,16563.0,16562.0,2.99591838]
[1672580021284,0.82890884,16563.0,16562.0,2.99591838]
[1672580022272,1.1005226,16563.0,16562.0,2.99591838]
[1672580023026,0.64777579,16563.0,16562.0,2.99591838]
[1672580024638,0.64777579,16563.0,16562.0,2.72027098]
[1672580024890,0.64777579,16563.0,16562.0,2.29591838]
[1672580025467,1.26878479,16563.0,16562.0,2.29591838]
[1672580025635,1.26878479,16563.0,16562.0,2.99591838]
[1672580025882,0.64777579,16563.0,16562.0,2.99591838]
[1672580026129,1.1005226,16563.0,16562.0,2.99591838]
[1672580026862,0.64777579,16563.0,16562.0,2.99591838]
[1672580027619,0.64777579,16563.0,16562.0,3.42027098]
[1672580028359,0.64777579,16563.0,16562.0,2.99591838]
[1672580028626,1.1005226,16563.0,16562.0,3.42027098]
[1672580029120,1.1005226,16563.0,16562.0,2.99591838]
[1672580030081,1.1005226,16563.0,16562.0,3.42027098]
[1672580030350,1.1005226,16563.0,16562.0,2.99591838]
[1672580030843,0.64777579,16563.0,16562.0,3.72027098]
[1672580031578,0.64777579,16563.0,16562.0,2.72027098]
[1672580031838,0.64777579,16563.0,16562.0,3.02027098]
[1672580032583,0.64777579,16563.0,16562.0,3.72027098]
[1672580033420,1.1005226,16563.0,16562.0,3.72027098]
[1672580034064,0.64777579,16563.0,16562.0,3.72027098]
[1672580034851,1.1005226,16563.0,16562.0,3.72027098]
[1672580036408,0.64777579,16563.0,16562.0,3.72011118]
[1672580038514,0.64777579,16563.0,16562.0,3.02011118]
[1672580039525,0.64777579,16563.0,16562.0,2.59575858]
[1672580039757,1.26878479,16563.0,16562.0,3.29575858]
[1672580039995,0.64777579,16563.0,16562.0,3.29575858]
[1672580040506,0.82890884,16563.0,16562.0,2.99575858]
[1672580043188,0.82890884,16563.0,16562.0,3.29575858]
[1672580043440,0.82890884,16563.0,16562.0,2.99575858]
[1672580045255,0.82890884,16563.0,16562.0,3.29575858]
[1672580045727,0.82890884,16563.0,16562.0,2.29575858]
[1672580045982,1.44991784,16563.0,16562.0,2.59575858]
[1672580046478,0.82890884,16563.0,16562.0,2.59575858]
[1672580046752,1.44991784,16563.0,16562.0,2.99575858]
[1672580047002,0.82890884,16563.0,16562.0,2.99575858]
[1672580047500,1.10056835,16563.0,16562.0,3.29575858]
[1672580047993,1.10056835,16563.0,16562.0,3.72011118]
[1672580049426,0.82890884,16563.0,16562.0,3.29575858]
[1672580049656,1.10056787,16563.0,16562.0,3.72011118]
[1672580050147,1.10056787,16563.0,16562.0,3.29575858]
[1672580050398,0.82890884,16563.0,16562.0,3.29575858]
[1672580051206,0.82890884,16563.0,16562.0,3.72011118]
[1672580051672,1.10057077,16563.0,16562.0,3.72011118]
[1672580051920,0.82890884,16563.0,16562.0,2.99575858]
[1672580052177,0.82890884,16563.0,16562.0,3.42011118]
[1672580052669,1.1005686,16563.0,16562.0,3.02011118]
[1672580053595,1.1005686,16563.0,16562.0,3.29575858]
[1672580053812,1.1005686,16563.0,16562.0,3.72011118]
[1672580056632,0.64782179,16563.0,16562.0,3.72011118]
[1672580056890,1.1005686,16563.0,16562.0,3.72011118]
[1672580057137,0.64782179,16563.0,16562.0,3.72011118]
[1672580057386,0.64782179,16563.0,16562.0,3.295677]
[1672580057627,1.1005686,16563.0,16562.0,3.7200296]
[1672580057873,0.64782179,16563.0,16562.0,3.7200296]
[1672580058607,0.82890884,16563.0,16562.0,3.7200296]
[1672580058842,1.10056554,16563.0,16562.0,3.7200296]
[1672580059356,1.10056554,16563.0,16562.0,3.295677]
[1672580059601,1.72157454,16563.0,16562.0,2.595677]
[1672580059858,1.45003318,16563.0,16562.0,2.295677]
[1672580060100,1.44991784,16563.0,16562.0,2.295677]
[1672580060741,1.44991784,16563.0,16562.0,2.995677]
[1672580061125,0.82890884,16563.0,16562.0,2.995677]
[1672580063637,1.44991784,16563.0,16562.0,2.995677]
[1672580063879,0.82890884,16563.0,16562.0,2.995677]
[1672580064830,1.44991784,16563.0,16562.0,2.995677]
[1672580065070,0.82890884,16563.0,16562.0,2.995677]
[1672580065575,1.44991784,16563.0,16562.0,2.995677]
[1672580065860,0.82890884,16563.0,16562.0,2.995677]
[1672580066350,1.44991784,16563.0,16562.0,2.995677]
[1672580066800,0.82890884,16563.0,16562.0,2.995677]
[1672580067264,1.44991784,16563.0,16562.0,2.995677]
[1672580067508,0.82890884,16563.0,16562.0,2.995677]
[1672580068000,1.44991784,16563.0,16562.0,2.995677]
[1672580068765,0.82890884,16563.0,16562.0,2.995677]
[1672580070002,1.44991784,16563.0,16562.0,2.995677]
[1672580070458,0.82890884,16563.0,16562.0,2.995677]
[1672580071198,1.44991784,16563.0,16562.0,2.995677]
[1672580071444,1.9351311,16563.0,16562.0,1.21601498]
[1672580071686,2.06490752,16563.0,16562.0,1.20751498]
[1672580071931,2.15227888,16563.0,16562.0,1.20751498]
[1672580072184,1.78244244,16563.0,16562.0,1.20751498]
[1672580072932,1.76844244,16563.0,16562.0,1.20751498]
[1672580073167,1.78244244,16563.0,16562.0,1.20751498]
[1672580073433,1.22832427,16563.0,16562.0,1.20751498]
[1672580073690,1.24232427,16563.0,16562.0,1.20751498]
[1672580077922,1.22832427,16563.0,16562.0,1.20751498]
[1672580078144,1.24332427,16563.0,16562.0,1.20751498]
[1672580078417,1.24332427,16563.0,16562.0,1.20739499]
[1672580078418,1.22832427,16563.0,16562.0,1.20739499]
[1672580078664,1.24232427,16563.0,16562.0,1.20739499]
[1672580080628,1.60756291,16563.0,16562.0,1.20739499]
[1672580081118,2.14768108,16563.0,16562.0,1.20739499]
[1672580081363,1.22832427,16563.0,16562.0,1.20739499]
[1672580081830,1.24332427,16563.0,16562.0,1.20739499]
[1672580083575,1.24320893,16563.0,16562.0,1.20739499]
[1672580084062,0.62219993,16563.0,16562.0,1.20739499]
[1672580085328,1.07414524,16563.0,16562.0,1.20739499]
[1672580088070,1.07426058,16563.0,16562.0,1.20739499]
[1672580089612,1.07414524,16563.0,16562.0,1.20739499]
[1672580090364,1.07426058,16563.0,16562.0,1.20739499]
[1672580090606,1.69526958,16563.0,16562.0,1.20739499]
[1672580091103,1.69515424,16563.0,16562.0,1.20739499]
[1672580091606,1.07414524,16563.0,16562.0,1.20739499]
[1672580091854,0.62219993,16563.0,16562.0,1.20739499]
[1672580092390,1.66756153,16563.0,16562.0,1.20739499]
[1672580093224,1.04655253,16563.0,16562.0,1.20739499]
[1672580093507,1.24320893,16563.0,16562.0,1.20739499]
[1672580093759,1.66756153,16563.0,16562.0,1.20739499]
[1672580094267,1.24320893,16563.0,16562.0,1.20739499]
[1672580094854,1.66756153,16563.0,16562.0,1.20739499]
[1672580095136,1.66767687,16563.0,16562.0,0.60360399]
[1672580095377,1.66767687,16563.0,16562.0,0.00057176]
[1672580095618,2.20779504,16563.0,16562.0,0.00057176]
[1672580095884,1.78344244,16563.0,16562.0,0.00057176]
[1672580097182,1.16243344,16563.0,16562.0,0.00057176]
[1672580097687,1.24332427,16563.0,16562.0,0.00057176]
[1672580097927,1.74332427,16563.0,16562.0,0.00057176]
[1672580099163,1.12231527,16563.0,16562.0,0.00057176]
[1672580099664,0.62231527,16563.0,16562.0,0.60436276]
[1672580102420,1.12231527,16563.0,16562.0,0.60429659]
[1672580102674,1.24332427,16563.0,16562.0,0.60429659]
[1672580103168,1.16243344,16563.0,16562.0,0.60429659]
[1672580103433,0.25517536,16563.0,16562.0,0.00050559]
[1672580103681,2.26464043,16563.0,16562.0,0.00050559]
[1672580103936,2.87473233,16563.0,16562.0,0.00050559]
[1672580104194,1.4864993,16563.0,16562.0,0.00050559]
[1672580104446,1.47116717,16563.0,16562.0,0.00050559]
[1672580105181,2.08125907,16563.0,16562.0,0.00050559]
[1672580105437,1.83537976,16563.0,16562.0,0.00050559]
[1672580105930,1.70337976,16563.0,16562.0,0.00050559]
[1672580106184,1.71437976,16563.0,16562.0,0.00050559]
[1672580106427,1.70337976,16563.0,16562.0,0.00050559]
[1672580106670,1.72237976,16563.0,16562.0,0.00050559]
[1672580106928,0.99127886,16563.0,16562.0,0.00050559]
[1672580107170,1.93111748,16563.0,16562.0,0.00050559]
[1672580107419,2.54120938,16563.0,16562.0,0.00050559]
[1672580107666,1.6124032,16563.0,16562.0,0.00050559]
[1672580107924,1.93119691,16563.0,16562.0,0.00050559]
[1672580109171,2.47332635,16563.0,16562.0,0.00050559]
[1672580109738,1.85231735,16563.0,16562.0,0.00050559]
[1672580110011,2.47332635,16563.0,16562.0,0.00050559]
[1672580110270,2.47344169,16563.0,16562.0,0.00050559]
[1672580111037,1.85243269,16563.0,16562.0,0.00050559]
[1672580111342,2.47325426,16563.0,16562.0,0.00050559]
[1672580111842,1.85224526,16563.0,16562.0,0.00050559]
[1672580112098,2.47325426,16563.0,16562.0,0.00050559]
[1672580112370,1.85224526,16563.0,16562.0,0.00050559]
[1672580112615,2.47325426,16563.0,16562.0,0.00050559]
[1672580112874,1.85224526,16563.0,16562.0,0.00050559]
[1672580113150,2.47325426,16563.0,16562.0,0.00050559]
[1672580114624,1.85224526,16563.0,16562.0,0.00050559]
[1672580114885,2.47325426,16563.0,16562.0,0.00050559]
[1672580115145,1.8523606,16563.0,16562.0,0.00050559]
[1672580115407,2.4733696,16563.0,16562.0,0.00050559]
[1672580116595,2.15457589,16563.0,16562.0,0.00050559]
[1672580116840,1.85234469,16563.0,16562.0,0.00050559]
[1672580117054,2.47335369,16563.0,16562.0,0.00050559]
[1672580117801,1.85234469,16563.0,16562.0,0.00050559]
[1672580118067,2.47335369,16563.0,16562.0,0.00050559]
[1672580118309,1.85234469,16563.0,16562.0,0.00050559]
[1672580118565,2.47335369,16563.0,16562.0,0.00050559]
[1672580118801,1.85234469,16563.0,16562.0,0.00050559]
[1672580119074,2.47335369,16563.0,16562.0,0.00050559]
[1672580119321,1.85234469,16563.0,16562.0,0.00050559]
[1672580119566,1.93110891,16563.0,16562.0,0.00050559]
[1672580120349,1.31009991,16563.0,16562.0,0.00050559]
[1672580120602,1.93110891,16563.0,16562.0,0.00050559]
[1672580121872,2.47364115,16563.0,16562.0,0.00050559]
[1672580122375,1.85263215,16563.0,16562.0,0.00050559]
[1672580122619,2.47364115,16563.0,16562.0,0.00050559]
[1672580122857,1.85263215,16563.0,16562.0,0.00050559]
[1672580123114,2.47364115,16563.0,16562.0,0.00050559]
[1672580123359,2.47352581,16563.0,16562.0,0.00050559]
[1672580123889,1.85251681,16563.0,16562.0,0.00050559]
[1672580124126,2.47352581,16563.0,16562.0,0.00050559]
[1672580124372,1.85251681,16563.0,16562.0,0.00050559]
[1672580124620,2.15474801,16563.0,16562.0,0.00050559]
[1672580124869,1.85248095,16563.0,16562.0,0.00050559]
[1672580125087,2.15474801,16563.0,16562.0,0.00050559]
[1672580125524,1.85244745,16563.0,16562.0,0.00050559]
[1672580125768,2.47345645,16563.0,16562.0,0.00050559]
[1672580126816,1.53373901,16563.0,16562.0,0.00050559]
[1672580127502,2.47347714,16563.0,16562.0,0.00050559]
[1672580127747,1.85258348,16563.0,16562.0,0.00050559]
[1672580128008,1.93106024,16563.0,16562.0,0.00050559]
[1672580128503,1.31005124,16563.0,16562.0,0.00050559]
[1672580128748,1.93106024,16563.0,16562.0,0.00050559]
[1672580129002,1.31005124,16563.0,16562.0,0.00050559]
[1672580129223,1.93106024,16563.0,16562.0,0.00050559]
[1672580129473,1.31005124,16563.0,16562.0,0.00050559]
[1672580129734,1.93106024,16563.0,16562.0,0.00050559]
[1672580129976,1.31005124,16563.0,16562.0,0.00050559]
[1672580130210,1.93106024,16563.0,16562.0,0.00050559]
[1672580130453,1.31005124,16563.0,16562.0,0.00050559]
[1672580130697,1.93106024,16563.0,16562.0,0.00050559]
[1672580130954,1.31005124,16563.0,16562.0,0.00050559]
[1672580131200,1.93106024,16563.0,16562.0,0.00050559]
[1672580131691,1.31005124,16563.0,16562.0,0.00050559]
[1672580131941,1.9309449,16563.0,16562.0,0.00050559]
[1672580132169,1.3099359,16563.0,16562.0,0.00050559]
[1672580132426,1.9119449,16563.0,16562.0,0.00050559]
[1672580132709,1.3079359,16563.0,16562.0,0.00050559]
[1672580132956,1.9289449,16563.0,16562.0,0.00050559]
[1672580133234,1.3079359,16563.0,16562.0,0.00050559]
[1672580133440,1.9289449,16563.0,16562.0,0.00050559]
[1672580133659,1.97053675,16563.0,16562.0,0.00050559]
[1672580134905,1.95353675,16563.0,16562.0,0.00050559]
[1672580135151,1.97253675,16563.0,16562.0,0.00050559]
[1672580135392,1.95353675,16563.0,16562.0,0.00050559]
[1672580135647,1.97065209,16563.0,16562.0,0.00050559]
[1672580135896,1.97065209,16563.0,16562.0,0.00042954]
[1672580139381,2.58074399,16563.0,16562.0,0.00042954]
[1672580139860,2.58062865,16563.0,16562.0,0.00042954]
[1672580140114,1.97053675,16563.0,16562.0,0.00042954]
[1672580140348,1.34952775,16563.0,16562.0,0.00042954]
[1672580140656,1.97053675,16563.0,16562.0,0.00042954]
[1672580141388,1.34952775,16563.0,16562.0,0.00042954]
[1672580141628,1.97053675,16563.0,16562.0,0.00042954]
[1672580143112,1.34952775,16563.0,16562.0,0.00042954]
[1672580143349,1.97053675,16563.0,16562.0,0.00042954]
[1672580143586,1.97065209,16563.0,16562.0,0.00042954]
[1672580144330,2.58074399,16563.0,16562.0,0.00042954]
[1672580147774,2.58059755,16563.0,16562.0,0.00042954]
[1672580148027,1.95958855,16563.0,16562.0,0.00042954]
[1672580148261,2.26189952,16563.0,16562.0,0.00042954]
[1672580148467,2.58070572,16563.0,16562.0,0.00042954]
[1672580150003,1.95969672,16563.0,16562.0,0.00042954]
[1672580150243,2.58070572,16563.0,16562.0,0.00042954]
[1672580151260,1.95969672,16563.0,16562.0,0.00042954]
[1672580151527,2.58082106,16563.0,16562.0,0.00042954]
[1672580151781,2.58070572,16563.0,16562.0,0.00042954]
[1672580152526,2.58082106,16563.0,16562.0,0.00042954]
[1672580154003,1.95981206,16563.0,16562.0,0.00042954]
[1672580154258,2.58082106,16563.0,16562.0,0.00042954]
[1672580154503,1.95981206,16563.0,16562.0,0.00042954]
[1672580154747,2.58082106,16563.0,16562.0,0.00042954]
[1672580156221,2.58082106,16563.0,16562.0,0.00036474]
[1672580161483,2.58070572,16563.0,16562.0,0.00036474]
[1672580161744,2.58038676,16563.0,16562.0,0.00036474]
[1672580161999,1.95937797,16563.0,16562.0,0.00036474]
[1672580162250,2.26189952,16563.0,16562.0,0.00036474]
[1672580162491,1.64089052,16563.0,16562.0,0.00036474]
[1672580163512,2.26189952,16563.0,16562.0,0.00036474]
[1672580163796,2.58048217,16563.0,16562.0,0.00036474]
[1672580164299,1.64089052,16563.0,16562.0,0.00036474]
[1672580164798,2.26189952,16563.0,16562.0,0.00036474]
[1672580165050,1.03091396,16563.0,16562.0,0.00036474]
[1672580165554,2.26201486,16563.0,16562.0,0.00036474]
[1672580165798,2.58060664,16563.0,16562.0,0.00036474]
[1672580166294,1.34950574,16563.0,16562.0,0.00036474]
[1672580166540,1.65192296,16563.0,16562.0,0.00036474]
[1672580166789,2.26201486,16563.0,16562.0,0.00036474]
[1672580167281,2.26189952,16563.0,16562.0,0.00036474]
[1672580167505,1.64089052,16563.0,16562.0,0.00036474]
[1672580168018,1.03091396,16563.0,16562.0,0.00036474]
[1672580168282,1.65180762,16563.0,16562.0,0.00036474]
[1672580168532,1.03079862,16563.0,16562.0,0.00036474]
[1672580169019,1.03091396,16563.0,16562.0,0.00036474]
[1672580170232,1.45526656,16563.0,16562.0,0.00036474]
[1672580170729,2.06535846,16563.0,16562.0,0.00036474]
[1672580171017,2.68636746,16563.0,16562.0,0.00036474]
[1672580171276,0.26863675,16562.0,16558.0,0.15]
[1672580171560,0.61090492,16560.0,16559.0,0.04832648]
[1672580171821,1.23191392,16560.0,16557.0,3.20566185]
[1672580172114,0.54304147,16558.0,16557.0,0.91681474]
[1672580172350,0.5,16558.0,16557.0,1.29346185]
[1672580172593,1.04304147,16558.0,16557.0,0.59346185]
[1672580172855,0.5,16558.0,16557.0,0.59346185]
[1672580173119,0.5,16558.0,16557.0,0.02656262]
[1672580173368,0.96616633,16558.0,16557.0,0.02656262]
[1672580173651,0.50011534,16558.0,16557.0,0.02656262]
[1672580173884,0.51411534,16558.0,16557.0,0.02656262]
[1672580174153,0.01411534,16558.0,16557.0,0.08155256]
[1672580174417,0.82767415,16558.0,16557.0,0.52999991]
[1672580174677,0.6468826,16558.0,16557.0,1.13397391]
[1672580174929,0.46606993,16558.0,16557.0,1.43397391]
[1672580175186,0.45206993,16558.0,16557.0,1.86382037]
[1672580175435,0.46606993,16558.0,16557.0,1.86382037]
[1672580175668,0.45206993,16558.0,16557.0,1.86382037]
[1672580175982,0.19482962,16558.0,16557.0,1.41537302]
[1672580176438,0.014,16558.0,16557.0,1.41537302]
[1672580176692,0.81371222,16559.0,16557.0,1.41537302]
[1672580176693,0.45206993,16559.0,16557.0,1.41537302]
[1672580176939,0.45206993,16559.0,16558.0,0.92984646]
[1672580177264,0.45206993,16559.0,16558.0,1.83378346]
[1672580177724,0.18082962,16559.0,16558.0,1.83378346]
[1672580178233,0.18082962,16559.0,16558.0,2.28433027]
[1672580178481,0.18082962,16559.0,16558.0,2.58131595]
[1672580178738,0.19282962,16559.0,16558.0,2.58131595]
[1672580178978,0.18082962,16559.0,16558.0,2.58131595]
[1672580179225,0.19282962,16559.0,16558.0,3.21125295]
[1672580179766,0.46418527,16559.0,16558.0,2.28140649]
[1672580179976,0.45206993,16559.0,16558.0,2.25540649]
[1672580180238,0.46406993,16559.0,16558.0,2.28140649]
[1672580181009,0.46406993,16559.0,16558.0,1.98140649]
[1672580181489,0.46406993,16559.0,16558.0,1.95540649]
[1672580181490,0.45206993,16559.0,16558.0,1.95540649]
[1672580181726,0.46606993,16559.0,16558.0,1.96840649]
[1672580182002,0.45206993,16559.0,16558.0,1.95540649]
[1672580182244,0.46506993,16559.0,16558.0,2.26840649]
[1672580182500,0.46506993,16559.0,16558.0,1.96840649]
[1672580183235,0.46506993,16559.0,16558.0,2.26840649]
[1672580183478,0.46506993,16559.0,16558.0,1.96840649]
[1672580184256,0.46518527,16559.0,16558.0,1.96840649]
[1672580184506,0.46506993,16559.0,16558.0,1.96840649]